fUSD/lending_fUSD_20250324
["ID","MTS","AMOUNT","RATE_DAILY","PERIOD"]
[356608322,1742813441432,-4086.0,0.00019725,2]
[356608324,1742813441441,-1431.0,0.00019725,2]
[356608326,1742813441451,-907.0,0.00019725,2]
[356608328,1742813441460,-1015.0,0.00019725,2]
[356608330,1742813441471,-3942.0,0.00019725,2]
[356608332,1742813441482,-151.0,0.00019725,2]
[356608334,1742813441491,-198.84,0.00019869,2]
[356608336,1742813441500,-157.77249751,0.00019869,2]
[356608338,1742813441510,-151.40729885,0.00019869,2]
[356608340,1742813441520,-155.67976156,0.00019869,2]
[356608342,1742813441530,-275.9497698,0.00019973,2]
[356608344,1742813441539,-6653.0,0.0002,2]
[356608346,1742813441548,-66723.30679846,0.0002,2]
[356608348,1742813441558,-3488.49992381,0.0002,4]
[356608350,1742813441569,-352.23,0.0002,2]
[356608352,1742813441578,-352.23,0.0002,2]
[356608354,1742813441588,-352.23,0.0002,2]
[356608355,1742813441598,-352.23,0.0002,2]
[356608357,1742813441606,-352.23,0.0002,2]
[356608359,1742813441616,-352.23,0.0002,2]
[356608361,1742813441625,-352.23,0.0002,2]
[356608363,1742813441635,-352.23,0.0002,2]
[356608365,1742813441644,-352.23,0.0002,2]
[356608367,1742813441653,-352.23,0.0002,2]
[356608369,1742813441663,-352.23,0.0002,2]
[356608371,1742813441671,-352.23,0.0002,2]
[356608373,1742813441680,-352.23,0.0002,2]
[356608375,1742813441690,-352.23,0.0002,2]
[356608378,1742813441699,-352.23,0.0002,2]
[356608379,1742813441709,-352.23,0.0002,2]
[356608382,1742813441718,-352.23,0.0002,2]
[356608383,1742813441729,-352.23,0.0002,2]
[356608385,1742813441739,-352.23,0.0002,2]
[356608388,1742813441748,-352.23,0.0002,2]
[356608389,1742813441757,-352.23,0.0002,2]
[356608391,1742813441766,-352.23,0.0002,2]
[356608393,1742813441776,-352.23,0.0002,2]
[356608395,1742813441785,-352.23,0.0002,2]
[356608397,1742813441794,-352.23,0.0002,2]
[356608399,1742813441804,-352.23,0.0002,2]
[356608401,1742813441813,-352.23,0.0002,2]
[356608403,1742813441823,-352.23,0.0002,2]
[356608405,1742813441832,-352.23,0.0002,2]
[356608407,1742813441841,-9833.3,0.000203,2]
[356608409,1742813441851,-937.84,0.00020344,2]
[356608411,1742813441861,-167.08,0.00020514,2]
[356608413,1742813441871,-1160.8402114,0.00020724,2]
[356608415,1742813441881,-942.4534199,0.00020733,2]
[356608417,1742813441890,-401.17,0.0002075,7]
[356608419,1742813441901,-159.09,0.00020782,2]
[356608421,1742813441910,-352.23,0.0002089,2]
[356608423,1742813441919,-42341.44571286,0.000209,30]
[356608425,1742813441929,-352.23,0.0002099,2]
[356608427,1742813441938,-352.23,0.0002099,2]
[356608429,1742813441950,-500.0,0.00021,2]
[356608431,1742813441960,-241219.8161017,0.00021,2]
[356608433,1742813441969,-1966.11,0.00021137,5]
[356608435,1742813441979,-352.23,0.0002144,2]
[356608437,1742813441987,-150.0,0.00021443,2]
[356608439,1742813441996,-150.0,0.00021445,2]
[356608441,1742813442005,-56810.34131312,0.0002145,2]
[356608443,1742813442014,-150.0,0.00021454,2]
[356608445,1742813442027,-150.0,0.00021458,2]
[356608447,1742813442038,-150.0,0.0002146,2]
[356608449,1742813442047,-150.0,0.00021461,2]
[356608451,1742813442057,-150.0,0.00021462,2]
[356608453,1742813442065,-150.0,0.00021464,2]
[356608455,1742813442074,-1000.0,0.00021465,2]
[356608457,1742813442084,-150.0,0.00021472,2]
[356608459,1742813442093,-1000.0,0.00021479,2]
[356608461,1742813442102,-150.0,0.00021482,2]
[356608463,1742813442111,-1000.0,0.00021482,2]
[356608465,1742813442120,-150.0,0.00021483,2]
[356608467,1742813442130,-150.0,0.00021484,2]
[356608469,1742813442139,-150.0,0.00021484,2]
[356608471,1742813442148,-293.29417547,0.00021486,2]
[356608473,1742813442157,-150.0,0.0002149,2]
[356608475,1742813442165,-150.0,0.00021493,2]
[356608477,1742813442174,-150.0,0.00021493,2]
[356608479,1742813442183,-150.0,0.00021495,2]
[356608481,1742813442192,-150.0,0.00021495,2]
[356608483,1742813442201,-150.0,0.00021496,2]
[356608485,1742813442210,-150.0,0.00021496,2]
[356608487,1742813442221,-150.0,0.00021498,2]
[356608489,1742813442230,-1000.0,0.00021498,2]
[356608491,1742813442240,-9833.3,0.000215,2]
[356608492,1742813442249,-150.0,0.00021501,2]
[356608496,1742813442358,-150.0,0.00021502,2]
[356608497,1742813442368,-150.0,0.00021502,2]
[356608498,1742813442377,-199.30358862,0.00021502,2]
[356608499,1742813442386,-150.0,0.00021504,2]
[356608500,1742813442396,-150.0,0.00021506,2]
[356608501,1742813442405,-150.0,0.00021506,2]
[356608502,1742813442415,-150.0,0.00021509,2]
[356608503,1742813442424,-150.0,0.00021512,2]
[356608504,1742813442433,-150.0,0.00021517,2]
[356608505,1742813442443,-150.0,0.00021522,2]
[356608506,1742813442452,-150.0,0.00021526,2]
[356608507,1742813442461,-150.0,0.00021531,2]
[356608508,1742813442471,-150.0,0.00021535,2]
[356608509,1742813442480,-150.0,0.00021535,2]
[356608510,1742813442490,-150.0,0.0002154,2]
[356608511,1742813442499,-150.0,0.00021546,2]
[356608512,1742813442508,-150.0,0.00021548,2]
[356608513,1742813442517,-150.0,0.00021549,2]
[356608515,1742813442527,-150.0,0.00021551,2]
[356608516,1742813442536,-150.0,0.00021551,2]
[356608517,1742813442545,-150.0,0.00021558,2]
[356608518,1742813442555,-1094.96669705,0.00021568,2]
[356608519,1742813442565,-150.0,0.0002157,2]
[356608520,1742813442575,-150.0,0.0002157,2]
[356608522,1742813442584,-150.0,0.00021572,2]
[356608523,1742813442594,-150.0,0.00021573,2]
[356608526,1742813442604,-150.0,0.00021574,2]
[356608528,1742813442614,-150.0,0.00021576,2]
[356608530,1742813442623,-150.0,0.00021576,2]
[356608532,1742813442633,-150.0,0.00021577,2]
[356608533,1742813442642,-1000.0,0.0002158,2]
[356608536,1742813442651,-150.0,0.00021583,2]
[356608538,1742813442661,-150.0,0.00021583,2]
[356608541,1742813442670,-150.0,0.00021584,2]
[356608544,1742813442679,-150.0,0.00021593,2]
[356608547,1742813442688,-150.0,0.00021599,2]
[356608550,1742813442697,-150.0,0.00021601,2]
[356608553,1742813442706,-150.0,0.00021604,2]
[356608556,1742813442715,-150.0,0.00021604,2]
[356608558,1742813442727,-150.0,0.00021606,2]
[356608559,1742813442736,-150.0,0.00021611,2]
[356608560,1742813442745,-150.0,0.00021612,2]
[356608561,1742813442754,-150.0,0.00021615,2]
[356608562,1742813442763,-150.0,0.00021616,2]
[356608563,1742813442773,-151.76873033,0.00021616,2]
[356608564,1742813442782,-150.0,0.00021617,2]
[356608565,1742813442792,-863.48,0.0002162,2]
[356608566,1742813442801,-1000.0,0.0002162,2]
[356608567,1742813442810,-150.0,0.00021626,2]
[356608568,1742813442819,-150.0,0.00021627,2]
[356608569,1742813442829,-150.0,0.00021627,2]
[356608570,1742813442838,-150.0,0.00021628,2]
[356608571,1742813442847,-150.0,0.00021629,2]
[356608572,1742813442856,-150.0,0.00021632,2]
[356608573,1742813442865,-150.0,0.00021636,2]
[356608576,1742813442874,-150.0,0.00021639,2]
[356608579,1742813442882,-150.0,0.00021643,2]
[356608581,1742813442891,-150.0,0.00021648,2]
[356608584,1742813442900,-150.0,0.00021655,2]
[356608587,1742813442910,-150.0,0.00021657,2]
[356608589,1742813442919,-150.0,0.00021657,2]
[356608591,1742813442928,-150.0,0.00021657,2]
[356608593,1742813442937,-150.0,0.00021663,2]
[356608594,1742813442948,-150.0,0.00021665,2]
[356608595,1742813442957,-150.0,0.00021667,2]
[356608596,1742813442966,-1000.0,0.0002167,2]
[356608597,1742813442977,-1000.0,0.00021671,2]
[356608598,1742813442987,-150.0,0.00021674,2]
[356608599,1742813442997,-150.0,0.00021676,2]
[356608600,1742813443006,-150.0,0.0002168,2]
[356608601,1742813443015,-150.0,0.00021681,2]
[356608602,1742813443025,-150.0,0.00021682,2]
[356608603,1742813443034,-1000.0,0.00021682,2]
[356608604,1742813443044,-150.0,0.00021684,2]
[356608605,1742813443053,-150.0,0.00021686,2]
[356608606,1742813443062,-150.0,0.00021686,2]
[356608607,1742813443071,-1000.0,0.0002169,2]
[356608608,1742813443080,-1000.0,0.00021693,2]
[356608609,1742813443090,-150.0,0.00021693,2]
[356608610,1742813443099,-150.0,0.00021697,2]
[356608611,1742813443108,-150.0,0.00021698,2]
[356608612,1742813443118,-150.0,0.00021702,2]
[356608613,1742813443128,-150.0,0.00021706,2]
[356608614,1742813443138,-150.0,0.00021707,2]
[356608615,1742813443147,-150.0,0.00021708,2]
[356608616,1742813443157,-150.0,0.00021709,2]
[356608617,1742813443168,-150.0,0.00021709,2]
[356608618,1742813443178,-1000.0,0.00021709,2]
[356608619,1742813443188,-167.08,0.0002172,2]
[356608620,1742813443197,-150.0,0.00021732,2]
[356608621,1742813443207,-150.0,0.00021733,2]
[356608622,1742813443216,-352.23,0.0002174,2]
[356608623,1742813443228,-150.0,0.00021749,2]
[356608624,1742813443238,-150.0,0.0002175,2]
[356608625,1742813443247,-150.0,0.0002175,2]
[356608626,1742813443257,-629.38787666,0.0002175,2]
[356608627,1742813443267,-1163.98281204,0.0002175,2]
[356608628,1742813443276,-150.0,0.0002175,2]
[356608629,1742813443285,-5629.97470811,0.0002175,2]
[356608630,1742813443294,-1502.16,0.00021857,2]
[356608631,1742813443303,-2175.32,0.000219,2]
[356608632,1742813443312,-1924.28,0.000219,2]
[356608634,1742813443322,-150.0,0.00021917,2]
[356608635,1742813443331,-319.2363953,0.00022,5]
[356608636,1742813443341,-642.0,0.00022725,2]
[356608637,1742813443350,-1281.0,0.00022725,2]
[356608638,1742813443359,-476.095,0.00022725,2]
[356608639,1742813443369,-1421.0,0.00022725,2]
[356608640,1742813443378,-788.0,0.00022725,2]
[356608641,1742813443391,-1273.0,0.00022725,2]
[356608642,1742813443400,-542.0,0.00022725,2]
[356608643,1742813443409,-4086.0,0.00022725,2]
[356608644,1742813443419,-1431.0,0.00022725,2]
[356608645,1742813443428,-907.0,0.00022725,2]
[356608646,1742813443437,-3942.0,0.00022725,2]
[356608647,1742813443447,-151.0,0.00022725,2]
[356608648,1742813443456,-2000.0,0.00022796,5]
[356608649,1742813443465,-9833.3,0.000228,2]
[356608650,1742813443475,-1160.8402114,0.00022924,2]
[356608651,1742813443485,-942.4534199,0.00022931,2]
[356608652,1742813443497,-550.0,0.00023,2]
[356608653,1742813443510,-50097.78949811,0.000232,2]
[356608654,1742813443524,-150.0,0.00023287,2]
[356608655,1742813443536,-971.42,0.00023836,2]
[356608656,1742813443548,-863.48,0.00023884,2]
[356608657,1742813443558,-440.3327615,0.00023984,2]
[356608658,1742813443570,-2631.3371758,0.00023984,2]
[356608659,1742813443582,-352.23,0.0002399,2]
[356608660,1742813443595,-352.23,0.0002399,2]
[356608661,1742813443606,-51490.97765963,0.00024,2]
[356608662,1742813443618,-40569.17850556,0.00024,2]
[356608663,1742813443652,-40249.23753609,0.00024,2]
[356608664,1742813443663,-151.0,0.00024,7]
[356608665,1742813443675,-220.961458,0.00024,5]
[356608666,1742813443684,-151.0,0.00024,7]
[356608667,1742813443695,-249.8493,0.00024,7]
[356608668,1742813443708,-249.8493,0.00024,7]
[356608669,1742813443722,-151.0,0.00024,7]
[356608670,1742813443733,-151.0,0.00024,7]
[356608671,1742813443744,-800.955386,0.00024,7]
[356608672,1742813443757,-800.955386,0.00024,7]
[356608673,1742813443769,-256.292866,0.00024,7]
[356608674,1742813443781,-151.0,0.00024,7]
[356608675,1742813443793,-155.091207,0.00024,7]
[356608676,1742813443804,-151.0,0.00024,7]
[356608677,1742813443816,-151.0,0.00024,7]
[356608678,1742813443827,-151.0,0.00024,7]
[356608679,1742813443840,-151.0,0.00024,7]
[356608680,1742813443852,-156.529505,0.00024,7]
[356608681,1742813443865,-219.536275,0.00024,7]
[356608682,1742813443877,-171.817819,0.00024,7]
[356608683,1742813443890,-151.0,0.00024,7]
[356608684,1742813443901,-155.581754,0.00024,7]
[356608685,1742813443912,-151.0,0.00024,7]
[356608686,1742813443924,-151.0,0.00024,7]
[356608687,1742813443937,-153.114442,0.00024,7]
[356608688,1742813443952,-151.0,0.00024,7]
[356608689,1742813443964,-205.136984,0.00024,7]
[356608690,1742813443977,-152.127268,0.00024,7]
[356608691,1742813443988,-151.0,0.00024,7]
[356608692,1742813443998,-151.0,0.00024,7]
[356608693,1742813444009,-151.0,0.00024,7]
[356608694,1742813444020,-151.0,0.00024,7]
[356608695,1742813444032,-152.235236,0.00024,7]
[356608696,1742813444044,-151.0,0.00024,7]
[356608697,1742813444057,-151.0,0.00024,7]
[356608698,1742813444068,-154.296182,0.00024,7]
[356608699,1742813444080,-151.0,0.00024,7]
[356608700,1742813444089,-154.999785,0.00024,7]
[356608701,1742813444099,-155.224343,0.00024,7]
[356608702,1742813444109,-151.0,0.00024,7]
[356608703,1742813444121,-151.0,0.00024,7]
[356608704,1742813444133,-151.0,0.00024,7]
[356608705,1742813444144,-151.0,0.00024,7]
[356608706,1742813444155,-151.0,0.00024,7]
[356608707,1742813444165,-153.724224,0.00024,7]
[356608708,1742813444176,-1908.86044326,0.00024552,2]
[356608709,1742813444186,-150.0,0.00024657,2]
[356608710,1742813444196,-1000.0,0.00024658,2]
[356608711,1742813444207,-175.82,0.00024712,30]
[356608712,1742813444218,-4406.7267183,0.00024783,2]
[356608713,1742813444231,-352.23,0.0002479,2]
[356608714,1742813444242,-352.23,0.0002479,2]
[356608715,1742813444253,-352.23,0.0002479,2]
[356608716,1742813444264,-352.23,0.0002479,2]
[356608717,1742813444275,-151.0,0.000248,7]
[356608718,1742813444286,-153.355246,0.000248,7]
[356608719,1742813444297,-249.8493,0.000248,7]
[356608720,1742813444308,-249.8493,0.000248,7]
[356608721,1742813444319,-155.580991,0.000248,7]
[356608722,1742813444330,-800.955386,0.000248,7]
[356608723,1742813444341,-800.955386,0.000248,7]
[356608724,1742813444352,-151.0,0.000248,7]
[356608725,1742813444363,-151.0,0.000248,7]
[356608726,1742813444373,-151.0,0.000248,7]
[356608727,1742813444384,-152.089455,0.000248,7]
[356608728,1742813444394,-151.0,0.000248,7]
[356608729,1742813444405,-158.176248,0.000248,7]
[356608730,1742813444415,-151.0,0.000248,7]
[356608731,1742813444426,-151.0,0.000248,7]
[356608732,1742813444437,-15801.42838796,0.000248,3]
[356608733,1742813444450,-43915.79999998,0.000248,3]
[356608734,1742813444463,-4403.8120149,0.000248,3]
[356608735,1742813444477,-1746.3324078,0.000248,3]
[356608736,1742813444490,-5702.41323589,0.000248,3]
[356608737,1742813444503,-11148.5019612,0.000248,3]
[356608738,1742813444516,-380.56427419,0.000248,3]
[356608739,1742813444528,-295.03253027,0.000248,3]
[356608740,1742813444541,-20974.87968965,0.000248,3]
[356608741,1742813444566,-1502.44652144,0.000248,3]
[356608742,1742813444587,-518.37168915,0.000248,3]
[356608743,1742813444600,-660.07913423,0.000248,3]
[356608744,1742813444613,-617.041611,0.000248,3]
[356608745,1742813444627,-2299.19999989,0.000248,3]
[356608746,1742813444641,-2267.16292566,0.000248,3]
[356608747,1742813444654,-718.48978149,0.000248,3]
[356608748,1742813445142,-596.21275922,0.00021037,3]
[356608749,1742813445152,-46.64629774,0.00021429,2]
[356608750,1742813445167,-103.35370226,0.00021429,2]
[356608751,1742813445177,-150.0,0.00021431,2]
[356608752,1742813445187,-150.0,0.00021436,2]
[356608753,1742813445197,-150.0,0.00021445,2]
[356608754,1742813445207,-150.0,0.00021446,2]
[356608755,1742813445218,-150.0,0.00021501,2]
[356608756,1742813445230,-150.0,0.00021502,2]
[356608757,1742813445240,-150.0,0.00021518,2]
[356608758,1742813445250,-150.0,0.00021523,2]
[356608759,1742813445261,-150.0,0.00021527,2]
[356608760,1742813445271,-150.0,0.00021528,2]
[356608761,1742813445280,-150.0,0.00021536,2]
[356608762,1742813445290,-150.0,0.00021548,2]
[356608763,1742813445299,-150.0,0.0002155,2]
[356608764,1742813445310,-150.0,0.00021551,2]
[356608765,1742813445319,-150.0,0.00021583,2]
[356608766,1742813445329,-150.0,0.00021587,2]
[356608767,1742813445338,-150.0,0.00021594,2]
[356608768,1742813445348,-150.0,0.00021599,2]
[356608769,1742813445358,-150.0,0.00021602,2]
[356608770,1742813445367,-150.0,0.00021629,2]
[356608771,1742813445376,-150.0,0.00021631,2]
[356608772,1742813445386,-150.0,0.00021649,2]
[356608773,1742813445395,-150.0,0.00021655,2]
[356608774,1742813445405,-150.0,0.00021658,2]
[356608775,1742813445414,-150.0,0.00021701,2]
[356608776,1742813445424,-4954.32335688,0.000248,3]
[356608777,1742813445445,-621.26609446,0.00019452,2]
[356608778,1742813445466,-113.43390554,0.00019452,2]
[356608779,1742813445476,-150.0,0.00021452,2]
[356608780,1742813445486,-32.70052781,0.00021599,2]
[356608781,1742813445510,-117.29947219,0.00021599,2]
[356608782,1742813445520,-150.0,0.00021621,2]
[356608783,1742813445531,-150.0,0.00021669,2]
[356608784,1742813445541,-150.0,0.00021682,2]
[356608785,1742813445551,-71.25052781,0.00024,7]
[356608786,1742813445570,-150.0,0.00021687,2]
[356608788,1742813445581,-79.74947219,0.00024,7]
[356608789,1742813445590,-528.82812383,0.000248,3]
[356608790,1742813445611,-150.0,0.00021483,2]
[356608791,1742813445620,-150.0,0.00021663,2]
[356608792,1742813445630,-90370.54826023,0.000248,3]
[356608827,1742813446795,-150.0,0.00021438,2]
[356608828,1742813446805,-150.0,0.00021444,2]
[356608829,1742813446815,-150.0,0.00021452,2]
[356608830,1742813446824,-150.0,0.00021453,2]
[356608831,1742813446834,-150.0,0.00021456,2]
[356608832,1742813446844,-150.0,0.00021473,2]
[356608833,1742813446854,-253.51918899,0.00021486,2]
[356608834,1742813446864,-150.0,0.00021488,2]
[356608835,1742813446874,-150.0,0.0002149,2]
[356608836,1742813446884,-150.0,0.00021501,2]
[356608837,1742813446894,-150.0,0.00021517,2]
[356608838,1742813446903,-150.0,0.0002152,2]
[356608839,1742813446913,-150.0,0.00021525,2]
[356608840,1742813446923,-150.0,0.00021528,2]
[356608841,1742813446934,-150.0,0.00021536,2]
[356608842,1742813446945,-150.0,0.0002155,2]
[356608843,1742813446957,-150.0,0.0002157,2]
[356608844,1742813446967,-150.0,0.00021573,2]
[356608845,1742813446977,-150.0,0.00021642,2]
[356608846,1742813446987,-150.0,0.00021651,2]
[356608847,1742813446997,-150.0,0.00021693,2]
[356608848,1742813447006,-150.0,0.00021698,2]
[356608849,1742813447016,-150.0,0.000217,2]
[356608850,1742813447027,-14047.51261101,0.000248,3]
[356608851,1742813447039,-268.987887,0.000248,3]
[356608852,1742813447050,-318.8803487,0.000248,3]
[356608853,1742813447061,-1303.49925922,0.000248,3]
[356608854,1742813447073,-564.88228283,0.000248,3]
[356608855,1742813447084,-2618.47238139,0.000248,3]
[356608856,1742813447096,-3572.8379069,0.000248,3]
[356608857,1742813447107,-3929.50000003,0.000248,3]
[356608858,1742813790653,325.3706302,0.00025,60]
[356608879,1742814202297,2088.43646,0.00025,120]
[356608881,1742814209374,540.816022,0.00025,120]
[356608882,1742814321889,-250.0,0.00011,2]
[356608883,1742814346644,-500.0,0.00011358,2]
[356608884,1742814346667,-150.0,0.00011795,2]
[356608885,1742814346688,-150.0,0.00011856,2]
[356608886,1742814352961,1244.3,0.00011358,2]
[356608914,1742814631945,-199.94003464,0.00011258,2]
[356608916,1742814631955,-131.90802536,0.00011358,2]
[356608917,1742814632000,-343.28965258,0.00011358,2]
[356608918,1742814632013,-1997.00000009,0.00011358,2]
[356608919,1742814632025,-967.42077249,0.00011358,2]
[356608920,1742814632036,-334.60004339,0.00011358,2]
[356608921,1742814632047,-1713.712,0.00011358,2]
[356608922,1742814632058,-4397.15,0.00011358,2]
[356608923,1742814632069,-601.72609519,0.00011358,2]
[356608924,1742814632107,-456.34168427,0.00011358,2]
[356608925,1742814632118,-11712.55172663,0.00011358,2]
[356608926,1742814632127,-1000.0,0.00011358,2]
[356608927,1742814632136,-1000.0,0.00012777,2]
[356608928,1742814632146,-1921.64941883,0.000129,2]
[356608929,1742814632155,-150.0,0.00012939,2]
[356608930,1742814632164,-300.0,0.00013,2]
[356608931,1742814632173,-251.70298604,0.00013561,2]
[356608932,1742814632182,-1000.0,0.00014197,2]
[356608933,1742814632192,-151.0,0.0001423,2]
[356608934,1742814632201,-3942.0,0.0001423,2]
[356608935,1742814632211,-342.83145065,0.00014303,2]
[356608936,1742814632220,-216.50978359,0.000149,2]
[356608937,1742814632229,-350.0,0.00015,2]
[356608938,1742814632239,-194.89958946,0.00015003,2]
[356608939,1742814632248,-443.256,0.00015004,2]
[356608940,1742814632256,-467.54155454,0.00015004,2]
[356608941,1742814632268,-813.45844546,0.00015004,2]
[356608942,1742814632277,-186.54155454,0.00015004,2]
[356608943,1742814632287,-922.539993,0.00015004,2]
[356608944,1742814632346,-311.91845246,0.00015004,2]
[356608945,1742814632361,-395.00277505,0.00015004,2]
[356608946,1742814632372,-390.99722495,0.00015004,2]
[356608948,1742814632382,-1273.0,0.00015004,2]
[356608950,1742814632393,-4086.0,0.00015004,2]
[356608952,1742814632403,-1431.0,0.00015004,2]
[356608953,1742814632412,-907.0,0.00015004,2]
[356608954,1742814632422,-542.0,0.00015004,2]
[356608956,1742814632432,-1000.0,0.00015617,2]
[356608958,1742814632443,-604.43,0.00016057,2]
[356608960,1742814632452,-150.99,0.00016922,2]
[356608962,1742814632461,-621.91,0.00016922,2]
[356608964,1742814632471,-400.0,0.00017,2]
[356608966,1742814632481,-1000.0,0.00017037,2]
[356608968,1742814632490,-200.0,0.00017198,2]
[356608970,1742814632500,-151.0,0.0001723,2]
[356608971,1742814632510,-3942.0,0.0001723,2]
[356608972,1742814632519,-1500.0,0.00017261,2]
[356608973,1742814632529,-250.0,0.00017422,2]
[356608975,1742814632538,-184.99,0.00017917,2]
[356608977,1742814632548,-1279.0,0.00018004,2]
[356608979,1742814632557,-407.256,0.00018004,2]
[356608981,1742814632567,-3679.957,0.00018004,2]
[356608983,1742814632576,-907.0,0.00018004,2]
[356608985,1742814632586,-1966.11,0.00018263,5]
[356608987,1742814632595,-604.43,0.00018321,2]
[356608989,1742814632605,-450.0,0.00019,2]
[356608991,1742814632614,-151.0,0.0002023,2]
[356608993,1742814632623,-3248.285,0.0002023,2]
[356608995,1742814632633,-4753.24,0.000203,2]
[356608997,1742814632643,-2000.0,0.00020389,5]
[356608999,1742814632653,-604.43,0.00020585,2]
[356609001,1742814632663,-501.88090667,0.00020931,2]
[356609003,1742814632672,-503.62376631,0.00020931,2]
[356609005,1742814632681,-500.0,0.00021,2]
[356609020,1742814632813,-4753.24,0.000215,2]
[356609022,1742814632823,-350.634,0.00021601,2]
[356609024,1742814632832,-167.09,0.00021776,2]
[356609026,1742814632842,-150.0,0.00021917,2]
[356609028,1742814632851,-501.0,0.00022082,2]
[356609030,1742814632860,-154.43,0.00022139,2]
[356609033,1742814632870,-150.0,0.0002221,7]
[356609035,1742814632879,-4753.24,0.000228,2]
[356609037,1742814632889,-2000.0,0.0002283,5]
[356609039,1742814632898,-604.43,0.00022849,2]
[356609041,1742814632907,-550.0,0.00023,2]
[356609042,1742814632916,-300.0,0.00023004,2]
[356609045,1742814632925,-151.0,0.0002323,2]
[356609046,1742814632935,-150.0,0.00023287,2]
[356609048,1742814632944,-152.34223338,0.00023369,2]
[356609050,1742814632953,-152.35749659,0.00023369,2]
[356609052,1742814632962,-151.33942996,0.00023369,2]
[356609054,1742814632971,-152.34230557,0.00023369,2]
[356609056,1742814632980,-160.35966236,0.00023829,2]
[356609058,1742814632989,-152.94688666,0.00023829,2]
[356609060,1742814632998,-264.59451659,0.00023829,2]
[356609062,1742814633009,-836.37,0.00023836,2]
[356609065,1742814633020,-155.34905475,0.00023859,2]
[356609067,1742814633030,-600.78052291,0.00024,2]
[356609069,1742814633040,-151.4585742,0.00024123,2]
[356609071,1742814633050,-155.50982091,0.00024123,2]
[356609073,1742814633059,-500.0,0.00024123,2]
[356609075,1742814633073,-300.0,0.00024373,2]
[356609077,1742814633082,-151.76873033,0.00024534,2]
[356609079,1742814633091,-1000.0,0.00024548,2]
[356609081,1742814633101,-1908.86044326,0.00024552,2]
[356609083,1742814633110,-587.56446114,0.0002457,2]
[356609085,1742814633121,-1000.0,0.0002458,2]
[356609087,1742814633130,-1000.0,0.00024587,2]
[356609089,1742814633139,-1000.0,0.00024603,2]
[356609091,1742814633149,-150.0,0.00024628,2]
[356609093,1742814633158,-150.0,0.00024628,2]
[356609095,1742814633168,-1000.0,0.00024628,2]
[356609097,1742814633178,-1000.0,0.00024628,2]
[356609099,1742814633187,-150.0,0.0002463,2]
[356609101,1742814633196,-150.0,0.00024631,2]
[356609102,1742814633206,-150.0,0.00024632,2]
[356609105,1742814633216,-1000.0,0.00024632,2]
[356609107,1742814633226,-150.0,0.00024634,2]
[356609108,1742814633237,-150.0,0.00024634,2]
[356609110,1742814633247,-150.0,0.00024636,2]
[356609112,1742814633257,-150.0,0.00024637,2]
[356609114,1742814633266,-150.0,0.00024637,2]
[356609116,1742814633277,-150.0,0.00024638,2]
[356609118,1742814633286,-150.0,0.00024639,2]